Workbook

Sheet Sheet1
D2: EMPLOYEE SALARY SHEET
A4: S.NO | B4: Employee Name | D4: Basic Pay | E4: DA | F4: Bonus | G4: Special Pay | H4: Gross Salary | I4: EPF WAGES | J4: EPS Wages | K4: EPF | L4: EPS | M4: Difference | N4: PF Admin | O4: EDLI | P4: EDLI Admin | Q4: Total Employer PF | R4: Employee ESI | S4: Employer ESI | T4: GTI | U4: Deductions | V4: Net Taxable salary | W4: Tax on salary | X4: rebate | Y4: After Rebate | Z4: EC & SHEC | AA4: total tax payable | AB4: Monthly TDS | AC4: taX | AD4: Cess | AE4: Net Salary | AF4: Monthly CTC | AG4: Annual CTC
A5: 1 | B5: P | D5: 5000 | E5: =10%*D5 -> 500 | F5: =ROUND(1/3*(D5+E5),0) -> 1833 | G5: =E5*2 -> 1000 | H5: =D5+E5+F5+G5 -> 8333 | I5: =D5+E5 -> 5500 | J5: =MIN(D5+E5,15000) -> 5500 | K5: =12%*I5 -> 660 | L5: =ROUND(8.33%*J5,0) -> 458 | M5: =K5-L5 -> 202 | N5: =ROUND(1.1%*(D5+E5),) -> 61 | O5: =ROUND(0.5%*MIN(D5+E5,15000),0) -> 28 | P5: =ROUND(0.01%*MIN(D5+E5,15000),0) -> 1 | Q5: =K5+M5 -> 862 | R5: =ROUND(1.75%*H5,0) -> 146 | S5: =ROUND(4.75%*H5,0) -> 396 | T5: =H5*12 -> 99996 | U5: =K5*12 -> 7920 | V5: =T5-U5 -> 92076 | W5: =IF(V5<=250000,0,IF(V5<=500000,10%*(V5-250000),IF(V5<=1000000,20%*(V5-500000)+25000,30%*(V5-1000000)+125000))) -> 0 | X5: =IF(V5<=250000,0,IF(V5<=500000,2000,0)) -> 0 | Y5: =W5-X5 -> 0 | Z5: =Y5*3% -> 0 | AA5: =Z5+Y5 -> 0 | AB5: =AA5/12 -> 0 | AC5: =ROUND(AB5/103*100,) -> 0 | AD5: =AB5-AC5 -> 0 | AE5: =H5-K5-R5 -> 7527 | AF5: =H5+Q5+S5 -> 9591 | AG5: =AF5*12 -> 115092
A6: =A5+1 -> 2 | B6: Q | D6: 100000 | E6: =10%*D6 -> 10000 | F6: =ROUND(1/3*(D6+E6),0) -> 36667 | G6: =E6*2 -> 20000 | H6: =D6+E6+F6+G6 -> 166667 | I6: =D6+E6 -> 110000 | J6: =MIN(D6+E6,15000) -> 15000 | K6: =12%*I6 -> 13200 | L6: =ROUND(8.33%*J6,0) -> 1250 | M6: =K6-L6 -> 11950 | N6: =ROUND(1.1%*(D6+E6),) -> 1210 | O6: =ROUND(0.5%*MIN(D6+E6,15000),0) -> 75 | P6: =ROUND(0.01%*MIN(D6+E6,15000),0) -> 2 | Q6: =K6+M6 -> 25150 | R6: =IF(H6>15000,0,1.75%*H6) -> 0 | S6: =ROUND(IF(H6>15000,0,4.75%*H6),0) -> 0 | T6: =H6*12 -> 2000004 | U6: =K6*12 -> 158400 | V6: =T6-U6 -> 1841604 | W6: =ROUND(IF(V6<=250000,0,IF(V6<=500000,10%*(V6-250000),IF(V6<=1000000,20%*(V6-500000)+25000,30%*(V6-1000000)+125000))),0) -> 377481 | X6: =IF(V6<=250000,0,IF(V6<=500000,2000,0)) -> 0 | Y6: =ROUND(W6-X6,0) -> 377481 | Z6: =ROUND(Y6*3%,0) -> 11324 | AA6: =B5:B10+[1]Sheet1!$B$3=Z6+Y6 ->  | AB6: =ROUND(AA6/12,0) ->  | AC6: =ROUND(AB6/103*100,) ->  | AD6: =AB6-AC6 ->  | AE6: =H6-K6-R6 -> 153467 | AF6: =H6+Q6+S6 -> 191817 | AG6: =AF6*12 -> 2301804
A7: =A6+1 -> 3 | B7: R | D7: 40000 | E7: 4000 | F7: 14667 | G7: 8000 | H7: 66667 | I7: 44000 | J7: 15000 | K7: 5280 | L7: 1250 | M7: 4030 | N7: 484 | O7: 75 | P7: 2 | Q7: 9310 | R7: =IF(H7>15000,0,1.75%*H7) -> 0 | S7: =ROUND(IF(H7>15000,0,4.75%*H7),0) -> 0 | T7: 800004 | U7: =K7*12 -> 63360 | V7: 736644 | W7: =ROUND(IF(V7<=250000,0,IF(V7<=500000,10%*(V7-250000),IF(V7<=1000000,20%*(V7-500000)+25000,30%*(V7-1000000)+125000))),0) -> 72329 | X7: 0 | Y7: =ROUND(W7-X7,0) -> 72329 | Z7: =ROUND(Y7*3%,0) -> 2170 | AA7: =Z7+Y7 -> 74499 | AB7: =ROUND(AA7/12,0) -> 6208 | AC7: 6027 | AD7: 181 | AE7: 61387 | AF7: 75977 | AG7: 911724
A8: 4 | B8: S | D8: 3000 | E8: 300 | F8: 1100 | G8: 600 | H8: 5000 | I8: 3300 | J8: 3300 | K8: 396 | L8: 275 | M8: 121 | N8: 36 | O8: 17 | P8: 0 | Q8: 517 | R8: =ROUND(IF(H8>15000,0,1.75%*H8),0) -> 88 | S8: 238 | T8: 60000 | U8: 4752 | V8: 55248 | W8: =IF(V8<=250000,0,IF(V8<=500000,10%*(V8-250000),IF(V8<=1000000,20%*(V8-500000)+25000,30%*(V8-1000000)+125000))) -> 0 | X8: 0 | Y8: =W8-X8 -> 0 | Z8: 0 | AA8: 0 | AB8: 0 | AC8: 0 | AD8: 0 | AE8: 4516 | AF8: 5755 | AG8: 69060
A9: 5 | B9: T | D9: 20000 | E9: 2000 | F9: 7333 | G9: 4000 | H9: 33333 | I9: 22000 | J9: 15000 | K9: 2640 | L9: 1250 | M9: 1390 | N9: 242 | O9: 75 | P9: 2 | Q9: 4030 | R9: 0 | S9: 0 | T9: 399996 | U9: 31680 | V9: 368316 | W9: =ROUND(IF(V9<=250000,0,IF(V9<=500000,10%*(V9-250000),IF(V9<=1000000,20%*(V9-500000)+25000,30%*(V9-1000000)+125000))),0) -> 11832 | X9: 2000 | Y9: 9832 | Z9: 295 | AA9: 10127 | AB9: 844 | AC9: 819 | AD9: 25 | AE9: 30693 | AF9: 37363 | AG9: 448356
A10: 6 | B10: U | D10: 6000 | E10: 600 | F10: 2200 | G10: 1200 | H10: 10000 | I10: 6600 | J10: 6600 | K10: 792 | L10: 550 | M10: 242 | N10: 73 | O10: 33 | P10: 1 | Q10: 1034 | R10: 175 | S10: 475 | T10: 120000 | U10: 9504 | V10: 110496 | W10: 0 | X10: 0 | Y10: 0 | Z10: =Y10*3% -> 0 | AA10: 0 | AB10: =AA10/12 -> 0 | AC10: 0 | AD10: 0 | AE10: 9033 | AF10: 11509 | AG10: 138108
B12: TOTAL | D12: =SUM(D5:D10) -> 174000 | E12: 17400 | F12: 63800 | G12: 34800 | H12: 290000 | I12: 191400 | J12: 60400 | K12: 22968 | L12: 5033 | M12: 17935 | N12: 2106 | O12: 303 | P12: 8 | Q12: 40903 | R12: 409 | S12: 1109 | AE12: 266623 | AF12: 332012 | AG12: =SUM(AG5:AG10) -> 3984144
